fUSD/lending_fUSD_20251225
["ID","MTS","AMOUNT","RATE_DAILY","PERIOD"]
[399726296,1766638247907,-150.0,0.00016337,2]
[399726297,1766638247916,-150.0,0.00016343,2]
[399726298,1766638247926,-150.0,0.00016345,2]
[399726299,1766638247936,-150.0,0.00016349,2]
[399726300,1766638247946,-169.12623375,0.00016351,2]
[399726301,1766638247956,-201.98052348,0.00016351,2]
[399726302,1766638247966,-295.90574568,0.00016351,2]
[399726303,1766638247976,-150.0,0.00016355,2]
[399726304,1766638247986,-150.0,0.0001636,2]
[399726305,1766638247996,-150.0,0.00016362,2]
[399726306,1766638248006,-150.0,0.00016363,2]
[399726307,1766638248016,-169.12623375,0.00016369,2]
[399726308,1766638248026,-201.98052348,0.00016369,2]
[399726309,1766638248035,-295.90574568,0.00016369,2]
[399726310,1766638248045,-150.0,0.00016377,2]
[399726311,1766638248055,-150.0,0.00016378,2]
[399726312,1766638248066,-150.0,0.0001638,2]
[399726313,1766638248076,-150.0,0.00016382,2]
[399726314,1766638248086,-169.12623375,0.00016386,2]
[399726315,1766638248095,-201.98052348,0.00016386,2]
[399726316,1766638248105,-295.90574568,0.00016386,2]
[399726317,1766638248115,-150.0,0.00016387,2]
[399726318,1766638248125,-150.0,0.00016395,2]
[399726319,1766638248134,-150.0,0.00016396,2]
[399726320,1766638248144,-150.0,0.00016398,2]
[399726321,1766638248154,-228.0,0.000164,2]
[399726322,1766638248163,-319.0,0.000164,2]
[399726323,1766638248174,-182.0,0.000164,2]
[399726324,1766638248184,-184.24951816,0.000164,2]
[399726325,1766638248194,-150.0,0.00016401,2]
[399726326,1766638248204,-169.12623375,0.00016403,2]
[399726327,1766638248214,-201.98052348,0.00016403,2]
[399726328,1766638248224,-295.90574568,0.00016403,2]
[399726329,1766638248234,-150.0,0.00016404,2]
[399726330,1766638248243,-150.0,0.00016412,2]
[399726331,1766638248254,-150.0,0.00016414,2]
[399726332,1766638248264,-169.12623375,0.0001642,2]
[399726333,1766638248274,-201.98052348,0.0001642,2]
[399726334,1766638248283,-150.0,0.0001642,2]
[399726335,1766638248293,-295.90574568,0.0001642,2]
[399726336,1766638248302,-150.0,0.0001642,2]
[399726337,1766638248312,-150.0,0.0001642,2]
[399726338,1766638248322,-150.0,0.0001642,2]
[399726339,1766638248332,-150.0,0.00016428,2]
[399726340,1766638248342,-150.0,0.00016432,2]
[399726341,1766638248352,-150.0,0.00016437,2]
[399726342,1766638248361,-169.12623375,0.00016437,2]
[399726343,1766638248371,-201.98052348,0.00016437,2]
[399726344,1766638248383,-295.90574568,0.00016437,2]
[399726345,1766638248393,-500.0,0.00016438,2]
[399726346,1766638248403,-500.0,0.00016438,2]
[399726347,1766638248412,-500.0,0.00016438,2]
[399726348,1766638248423,-500.0,0.00016438,2]
[399726349,1766638248432,-500.0,0.00016438,2]
[399726350,1766638248442,-500.0,0.00016438,2]
[399726351,1766638248452,-500.0,0.00016438,2]
[399726352,1766638248461,-500.0,0.00016438,2]
[399726353,1766638248471,-500.0,0.00016438,2]
[399726354,1766638248480,-500.0,0.00016438,2]
[399726355,1766638248490,-500.0,0.00016438,2]
[399726356,1766638248499,-200.0,0.00016438,2]
[399726357,1766638248509,-500.0,0.00016438,2]
[399726358,1766638248519,-500.0,0.00016438,2]
[399726359,1766638248530,-500.0,0.00016438,2]
[399726360,1766638248540,-500.0,0.00016438,2]
[399726361,1766638248549,-500.0,0.00016438,2]
[399726362,1766638248559,-500.0,0.00016438,2]
[399726363,1766638248569,-500.0,0.00016438,2]
[399726364,1766638248580,-500.0,0.00016438,2]
[399726365,1766638248590,-500.0,0.00016438,2]
[399726366,1766638248599,-500.0,0.00016438,2]
[399726367,1766638248610,-500.0,0.00016438,2]
[399726368,1766638248620,-500.0,0.00016438,2]
[399726369,1766638248631,-500.0,0.00016438,2]
[399726370,1766638248641,-500.0,0.00016438,2]
[399726371,1766638248651,-500.0,0.00016438,2]
[399726372,1766638248661,-500.0,0.00016438,2]
[399726373,1766638248671,-500.0,0.00016438,2]
[399726374,1766638248681,-500.0,0.00016438,2]
[399726375,1766638248692,-500.0,0.00016438,2]
[399726376,1766638248702,-500.0,0.00016438,2]
[399726377,1766638248711,-500.0,0.00016438,2]
[399726378,1766638248721,-500.0,0.00016438,2]
[399726379,1766638248731,-500.0,0.00016438,2]
[399726380,1766638248740,-500.0,0.00016438,2]
[399726381,1766638248750,-500.0,0.00016438,2]
[399726382,1766638248759,-500.0,0.00016438,2]
[399726383,1766638248769,-500.0,0.00016438,2]
[399726384,1766638248779,-500.0,0.00016438,2]
[399726385,1766638248789,-500.0,0.00016438,2]
[399726386,1766638248798,-429.06773079,0.00016438,2]
[399726387,1766638248808,-500.0,0.00016438,2]
[399726388,1766638248819,-500.0,0.00016438,2]
[399726389,1766638248828,-500.0,0.00016438,2]
[399726390,1766638248837,-500.0,0.00016438,2]
[399726391,1766638248846,-500.0,0.00016438,2]
[399726392,1766638248855,-600.0,0.00016438,2]
[399726393,1766638248866,-716.0,0.00016438,2]
[399726394,1766638248875,-800.0,0.00016438,2]
[399726395,1766638248885,-150.0,0.00016439,2]
[399726396,1766638248894,-150.0,0.0001645,2]
[399726397,1766638248904,-150.0,0.00016452,2]
[399726398,1766638248913,-169.12623375,0.00016454,2]
[399726399,1766638248923,-201.98052348,0.00016454,2]
[399726400,1766638248933,-295.90574568,0.00016454,2]
[399726401,1766638248943,-150.0,0.00016458,2]
[399726402,1766638248952,-150.0,0.00016462,2]
[399726403,1766638248962,-150.0,0.00016464,2]
[399726404,1766638248971,-150.0,0.00016464,2]
[399726405,1766638248982,-150.0,0.00016468,2]
[399726406,1766638248992,-150.0,0.00016469,2]
[399726407,1766638249002,-169.12623375,0.00016472,2]
[399726408,1766638249012,-201.98052348,0.00016472,2]
[399726409,1766638249022,-295.90574568,0.00016472,2]
[399726410,1766638249032,-150.0,0.00016477,2]
[399726411,1766638249042,-150.0,0.00016477,2]
[399726412,1766638249052,-150.0,0.00016486,2]
[399726413,1766638249062,-150.0,0.00016487,2]
[399726414,1766638249072,-169.12623375,0.00016489,2]
[399726415,1766638249081,-201.98052348,0.00016489,2]
[399726416,1766638249091,-295.90574568,0.00016489,2]
[399726417,1766638249102,-150.0,0.00016496,2]
[399726418,1766638249112,-150.0,0.00016501,2]
[399726419,1766638249122,-150.0,0.00016504,2]
[399726420,1766638249132,-169.12623375,0.00016506,2]
[399726421,1766638249141,-201.98052348,0.00016506,2]
[399726422,1766638249152,-295.90574568,0.00016506,2]
[399726423,1766638249163,-150.0,0.00016507,2]
[399726424,1766638249172,-150.0,0.00016512,2]
[399726425,1766638249182,-150.0,0.00016514,2]
[399726426,1766638249191,-150.0,0.00016514,2]
[399726427,1766638249202,-150.0,0.00016521,2]
[399726428,1766638249213,-169.12623375,0.00016523,2]
[399726429,1766638249222,-201.98052348,0.00016523,2]
[399726430,1766638249232,-295.90574568,0.00016523,2]
[399726431,1766638249243,-150.0,0.00016525,2]
[399726432,1766638249253,-150.0,0.00016529,2]
[399726433,1766638249262,-150.0,0.00016533,2]
[399726434,1766638249273,-150.0,0.00016537,2]
[399726435,1766638249283,-150.0,0.00016539,2]
[399726436,1766638249292,-169.12623375,0.0001654,2]
[399726437,1766638249302,-201.98052348,0.0001654,2]
[399726438,1766638249312,-295.90574568,0.0001654,2]
[399726439,1766638249323,-150.0,0.00016543,2]
[399726440,1766638249333,-150.0,0.0001655,2]
[399726441,1766638249342,-150.0,0.00016551,2]
[399726442,1766638249352,-150.0,0.00016552,2]
[399726443,1766638249363,-162.74,0.00016554,2]
[399726444,1766638249373,-150.0,0.00016557,2]
[399726445,1766638249386,-169.12623375,0.00016557,2]
[399726446,1766638249396,-201.98052348,0.00016557,2]
[399726447,1766638249406,-295.90574568,0.00016557,2]
[399726448,1766638249416,-150.0,0.00016562,2]
[399726449,1766638249427,-150.0,0.00016562,2]
[399726450,1766638249438,-2102.4,0.00016568,2]
[399726451,1766638249448,-150.0,0.00016571,2]
[399726452,1766638249458,-150.0,0.00016574,2]
[399726453,1766638249470,-169.12623375,0.00016575,2]
[399726454,1766638249479,-201.98052348,0.00016575,2]
[399726455,1766638249491,-295.90574568,0.00016575,2]
[399726456,1766638249501,-150.0,0.00016575,2]
[399726457,1766638249512,-150.0,0.00016587,2]
[399726458,1766638249522,-150.0,0.0001659,2]
[399726459,1766638249533,-169.12623375,0.00016592,2]
[399726460,1766638249543,-201.98052348,0.00016592,2]
[399726461,1766638249553,-295.90574568,0.00016592,2]
[399726462,1766638249564,-150.0,0.00016593,2]
[399726463,1766638249574,-150.0,0.00016594,2]
[399726464,1766638249584,-150.0,0.00016594,2]
[399726465,1766638249594,-150.0,0.00016598,2]
[399726466,1766638249604,-169.12623375,0.00016609,2]
[399726467,1766638249613,-201.98052348,0.00016609,2]
[399726468,1766638249623,-150.0,0.00016609,2]
[399726469,1766638249633,-295.90574568,0.00016609,2]
[399726470,1766638249643,-150.0,0.00016609,2]
[399726471,1766638249653,-150.0,0.00016611,2]
[399726472,1766638249663,-150.0,0.00016612,2]
[399726473,1766638249673,-150.0,0.00016617,2]
[399726474,1766638249683,-150.0,0.00016622,2]
[399726475,1766638249693,-169.12623375,0.00016626,2]
[399726476,1766638249703,-201.98052348,0.00016626,2]
[399726477,1766638249713,-295.90574568,0.00016626,2]
[399726478,1766638249723,-150.0,0.00016628,2]
[399726479,1766638249733,-150.0,0.00016629,2]
[399726480,1766638249743,-150.0,0.00016637,2]
[399726481,1766638249754,-150.0,0.00016638,2]
[399726482,1766638249764,-169.12623375,0.00016643,2]
[399726483,1766638249774,-201.98052348,0.00016643,2]
[399726484,1766638249784,-295.90574568,0.00016643,2]
[399726485,1766638249793,-150.0,0.00016647,2]
[399726486,1766638249803,-150.0,0.00016647,2]
[399726487,1766638249813,-150.0,0.00016647,2]
[399726488,1766638249822,-150.0,0.00016647,2]
[399726489,1766638249832,-150.0,0.0001666,2]
[399726490,1766638249841,-169.12623375,0.0001666,2]
[399726491,1766638249851,-201.98052348,0.0001666,2]
[399726492,1766638249861,-295.90574568,0.0001666,2]
[399726493,1766638249871,-150.0,0.00016662,2]
[399726494,1766638249881,-150.0,0.00016664,2]
[399726495,1766638249891,-150.0,0.00016665,2]
[399726496,1766638249901,-150.0,0.00016671,2]
[399726497,1766638249911,-169.12623375,0.00016677,2]
[399726498,1766638249921,-201.98052348,0.00016677,2]
[399726499,1766638249931,-295.90574568,0.00016677,2]
[399726500,1766638249941,-150.0,0.00016681,2]
[399726501,1766638249951,-150.0,0.00016682,2]
[399726502,1766638249962,-150.0,0.00016684,2]
[399726503,1766638249973,-150.0,0.00016687,2]
[399726504,1766638249983,-150.0,0.00016691,2]
[399726505,1766638249993,-169.12623375,0.00016695,2]
[399726506,1766638250003,-201.98052348,0.00016695,2]
[399726507,1766638250013,-295.90574568,0.00016695,2]
[399726508,1766638250023,-150.0,0.00016695,2]
[399726509,1766638250033,-150.0,0.000167,2]
[399726510,1766638250043,-150.0,0.00016703,2]
[399726511,1766638250058,-150.0,0.00016703,2]
[399726512,1766638250068,-150.0,0.00016712,2]
[399726513,1766638250078,-169.12623375,0.00016712,2]
[399726514,1766638250091,-201.98052348,0.00016712,2]
[399726515,1766638250102,-295.90574568,0.00016712,2]
[399726516,1766638250111,-165.25,0.00016712,2]
[399726517,1766638250122,-150.0,0.00016718,2]
[399726518,1766638250131,-150.0,0.00016719,2]
[399726519,1766638250141,-150.0,0.00016722,2]
[399726520,1766638250151,-150.0,0.00016725,2]
[399726521,1766638250161,-150.0,0.00016725,2]
[399726522,1766638250171,-169.12623375,0.00016729,2]
[399726523,1766638250182,-201.98052348,0.00016729,2]
[399726524,1766638250192,-295.90574568,0.00016729,2]
[399726525,1766638250202,-150.0,0.00016736,2]
[399726526,1766638250211,-150.0,0.00016737,2]
[399726527,1766638250222,-150.0,0.00016741,2]
[399726528,1766638250231,-150.0,0.00016744,2]
[399726529,1766638250241,-169.12623375,0.00016746,2]
[399726530,1766638250251,-201.98052348,0.00016746,2]
[399726531,1766638250261,-295.90574568,0.00016746,2]
[399726532,1766638250270,-201.12732165,0.0001675,2]
[399726533,1766638250280,-150.0,0.00016754,2]
[399726534,1766638250290,-150.0,0.0001676,2]
[399726535,1766638250299,-150.0,0.00016761,2]
[399726536,1766638250308,-200.0,0.00016763,2]
[399726537,1766638250318,-500.0,0.00016763,2]
[399726538,1766638250328,-200.0,0.00016763,2]
[399726539,1766638250338,-169.12623375,0.00016763,2]
[399726540,1766638250349,-201.98052348,0.00016763,2]
[399726541,1766638250359,-295.90574568,0.00016763,2]
[399726542,1766638250369,-150.0,0.00016765,2]
[399726543,1766638250379,-150.0,0.00016768,2]
[399726544,1766638250392,-150.0,0.00016769,2]
[399726545,1766638250402,-1719.91764105,0.00016771,2]
[399726546,1766638250413,-150.0,0.00016772,2]
[399726547,1766638250423,-150.0,0.00016774,2]
[399726548,1766638250433,-150.0,0.00016779,2]
[399726549,1766638250443,-169.12623375,0.0001678,2]
[399726550,1766638250453,-201.98052348,0.0001678,2]
[399726551,1766638250464,-295.90574568,0.0001678,2]
[399726552,1766638250475,-150.0,0.00016786,2]
[399726553,1766638250485,-150.0,0.0001679,2]
[399726554,1766638250495,-150.0,0.0001679,2]
[399726555,1766638250505,-150.0,0.00016792,2]
[399726556,1766638250515,-169.12623375,0.00016798,2]
[399726557,1766638250524,-201.98052348,0.00016798,2]
[399726558,1766638250534,-150.0,0.00016798,2]
[399726559,1766638250544,-295.90574568,0.00016798,2]
[399726560,1766638250553,-150.0,0.00016798,2]
[399726561,1766638250562,-150.0,0.00016807,2]
[399726562,1766638250572,-150.0,0.00016811,2]
[399726563,1766638250582,-150.0,0.00016812,2]
[399726564,1766638250592,-169.12623375,0.00016815,2]
[399726565,1766638250601,-201.98052348,0.00016815,2]
[399726566,1766638250611,-295.90574568,0.00016815,2]
[399726567,1766638250621,-150.0,0.00016816,2]
[399726568,1766638250632,-150.0,0.00016816,2]
[399726569,1766638250642,-150.0,0.00016825,2]
[399726570,1766638250652,-169.12623375,0.00016832,2]
[399726571,1766638250662,-201.98052348,0.00016832,2]
[399726572,1766638250672,-295.90574568,0.00016832,2]
[399726573,1766638250682,-150.0,0.00016835,2]
[399726574,1766638250692,-150.0,0.00016836,2]
[399726575,1766638250702,-150.0,0.00016839,2]
[399726576,1766638250712,-150.0,0.00016841,2]
[399726577,1766638250722,-2102.47,0.00016842,2]
[399726578,1766638250732,-150.0,0.00016843,2]
[399726579,1766638250742,-169.12623375,0.00016849,2]
[399726580,1766638250752,-201.98052348,0.00016849,2]
[399726581,1766638250763,-295.90574568,0.00016849,2]
[399726582,1766638250773,-150.0,0.00016854,2]
[399726583,1766638250783,-150.0,0.00016856,2]
[399726584,1766638250793,-150.0,0.00016856,2]
[399726585,1766638250803,-150.0,0.00016861,2]
[399726586,1766638250812,-150.0,0.00016861,2]
[399726587,1766638250822,-150.0,0.00016865,2]
[399726588,1766638250832,-169.12623375,0.00016866,2]
[399726589,1766638250842,-201.98052348,0.00016866,2]
[399726590,1766638250852,-295.90574568,0.00016866,2]
[399726591,1766638250862,-150.0,0.00016873,2]
[399726592,1766638250872,-150.0,0.00016879,2]
[399726593,1766638250883,-169.12623375,0.00016883,2]
[399726594,1766638250894,-201.98052348,0.00016883,2]
[399726595,1766638250904,-295.90574568,0.00016883,2]
[399726596,1766638250914,-150.0,0.00016886,2]
[399726597,1766638250924,-150.0,0.00016889,2]
[399726598,1766638250934,-150.0,0.00016892,2]
[399726599,1766638250944,-150.0,0.00016892,2]
[399726600,1766638251071,-150.0,0.00016897,2]
[399726601,1766638251082,-10000.0,0.00016899,2]
[399726602,1766638251092,-606.45408046,0.00016899,2]
[399726603,1766638251104,-150.0,0.00016899,2]
[399726604,1766638251115,-44052.03899512,0.000169,2]
[399726605,1766638251125,-24378.81116528,0.000169,2]
[399726606,1766638251137,-235.22228614,0.000169,2]
[399726607,1766638251158,-621.7053326,0.000169,2]
[399726608,1766638251174,-223.45632631,0.000169,2]
[399726609,1766638251184,-170.28248417,0.000169,2]
[399726610,1766638251194,-500.0,0.000169,2]
[399726611,1766638251203,-500.0,0.000169,2]
[399726612,1766638251214,-500.0,0.000169,2]
[399726613,1766638251223,-500.0,0.000169,2]
[399726614,1766638251233,-500.0,0.000169,2]
[399726615,1766638251243,-320.80490419,0.000169,2]
[399726616,1766638251253,-169.12623375,0.00016901,2]
[399726617,1766638251263,-201.98052348,0.00016901,2]
[399726618,1766638251272,-295.90574568,0.00016901,2]
[399726619,1766638251282,-292.0,0.00016906,2]
[399726620,1766638251292,-150.0,0.00016911,2]
[399726621,1766638251301,-150.0,0.00016911,2]
[399726622,1766638251311,-150.0,0.00016912,2]
[399726623,1766638251321,-150.0,0.00016914,2]
[399726624,1766638251330,-150.0,0.00016915,2]
[399726625,1766638251340,-169.12623375,0.00016918,2]
[399726626,1766638251350,-201.98052348,0.00016918,2]
[399726627,1766638251360,-295.90574568,0.00016918,2]
[399726628,1766638251371,-150.0,0.00016921,2]
[399726629,1766638251383,-1152.0,0.00016924,2]
[399726630,1766638251393,-150.0,0.0001693,2]
[399726631,1766638251403,-150.0,0.00016933,2]
[399726632,1766638251414,-169.12623375,0.00016935,2]
[399726633,1766638251424,-201.98052348,0.00016935,2]
[399726634,1766638251433,-295.90574568,0.00016935,2]
[399726635,1766638251444,-150.0,0.00016936,2]
[399726636,1766638251455,-150.0,0.00016938,2]
[399726637,1766638251465,-150.0,0.00016943,2]
[399726638,1766638251475,-150.0,0.00016949,2]
[399726639,1766638251485,-150.0,0.00016951,2]
[399726640,1766638251495,-169.12623375,0.00016952,2]
[399726641,1766638251505,-201.98052348,0.00016952,2]
[399726642,1766638251514,-295.90574568,0.00016952,2]
[399726643,1766638251524,-150.0,0.00016961,2]
[399726644,1766638251534,-150.0,0.00016962,2]
[399726645,1766638251543,-150.0,0.00016967,2]
[399726646,1766638251554,-150.0,0.00016968,2]
[399726647,1766638251564,-169.12623375,0.00016969,2]
[399726648,1766638251574,-201.98052348,0.00016969,2]
[399726649,1766638251584,-295.90574568,0.00016969,2]
[399726650,1766638251594,-500.59611771,0.00016973,2]
[399726651,1766638251604,-500.0,0.00016973,2]
[399726652,1766638251614,-500.0,0.00016973,2]
[399726653,1766638251624,-500.0,0.00016973,2]
[399726654,1766638251635,-500.0,0.00016973,2]
[399726655,1766638251644,-172.71520576,0.00016973,2]
[399726656,1766638251654,-500.0,0.00016973,2]
[399726657,1766638251665,-500.0,0.00016973,2]
[399726658,1766638251675,-500.0,0.00016973,2]
[399726659,1766638251684,-174.86770557,0.00016973,2]
[399726660,1766638251694,-500.0,0.00016973,2]
[399726661,1766638251704,-500.0,0.00016973,2]
[399726662,1766638251714,-164.91223401,0.00016973,2]
[399726663,1766638251724,-163.82860777,0.00016973,2]
[399726664,1766638251734,-157.08021771,0.00016973,2]
[399726665,1766638251743,-500.0,0.00016973,2]
[399726666,1766638251753,-500.0,0.00016973,2]
[399726667,1766638251763,-609.0239433,0.00016973,2]
[399726668,1766638251773,-538.67026127,0.00016973,2]
[399726669,1766638251783,-162.97042988,0.00016973,2]
[399726670,1766638251793,-500.0,0.00016973,2]
[399726671,1766638251803,-162.14010423,0.00016973,2]
[399726672,1766638251812,-223.10484954,0.00016973,2]
[399726673,1766638251822,-500.0,0.00016973,2]
[399726674,1766638251832,-500.0,0.00016973,2]
[399726675,1766638251842,-500.0,0.00016973,2]
[399726676,1766638251851,-500.0,0.00016973,2]
[399726677,1766638251862,-500.0,0.00016973,2]
[399726678,1766638251873,-500.34321322,0.00016973,2]
[399726679,1766638251883,-500.0,0.00016973,2]
[399726680,1766638251892,-500.0,0.00016973,2]
[399726681,1766638251902,-500.0,0.00016973,2]
[399726682,1766638251912,-318.77837914,0.00016973,2]
[399726683,1766638251922,-501.82675506,0.00016973,2]
[399726684,1766638251932,-505.30351694,0.00016983,2]
[399726685,1766638251942,-500.0,0.00016986,2]
[399726686,1766638251952,-626.04,0.00016986,2]
[399726687,1766638251962,-169.12623375,0.00016986,2]
[399726688,1766638251972,-183.38649304,0.00016986,2]
[399726689,1766638251983,-178.95978475,0.00016986,2]
[399726690,1766638251993,-201.98052348,0.00016986,2]
[399726691,1766638252003,-150.937063,0.00016986,2]
[399726692,1766638252014,-154.7319363,0.00016986,2]
[399726693,1766638252024,-295.90574568,0.00016986,2]
[399726694,1766638252035,-245.57471191,0.00016986,2]
[399726695,1766638252045,-296.26130804,0.00016986,2]
[399726696,1766638252055,-154.61358125,0.00016986,2]
[399726697,1766638252065,-178.89946207,0.00016986,2]
[399726698,1766638252075,-152.82523523,0.00016986,2]
[399726699,1766638252086,-151.27540321,0.00016986,2]
[399726700,1766638252096,-162.61909811,0.00016986,2]
[399726701,1766638252108,-238.98995802,0.00016986,2]
[399726702,1766638252118,-162.14613951,0.00016986,2]
[399726703,1766638252129,-347.10981431,0.0001699,2]
[399726704,1766638252139,-347.10981431,0.0001699,2]
[399726705,1766638252149,-151.0,0.00016997,2]
[399726706,1766638252159,-151.0,0.00016997,2]
[399726707,1766638252170,-1060.87558748,0.00016998,5]
[399726708,1766638252180,-699.05,0.00016998,2]
[399726709,1766638252189,-699.05,0.00016998,2]
[399726710,1766638252199,-500.0,0.00016998,2]
[399726711,1766638252209,-500.0,0.00016998,2]
[399726712,1766638252219,-468.04981383,0.00016998,2]
[399726713,1766638252230,-500.0,0.00016998,2]
[399726714,1766638252240,-500.0,0.00016998,2]
[399726715,1766638252250,-238.33319847,0.00016998,2]
[399726716,1766638252261,-500.0,0.00016998,2]
[399726717,1766638252271,-500.0,0.00016998,2]
[399726718,1766638252281,-500.0,0.00016998,2]
[399726719,1766638252291,-500.0,0.00016998,2]
[399726720,1766638252300,-545.87,0.00016998,2]
[399726721,1766638252310,-545.87,0.00016998,2]
[399726722,1766638252320,-500.0,0.00016998,2]
[399726723,1766638252331,-827.76,0.00016998,2]
[399726724,1766638252342,-500.0,0.00016998,2]
[399726725,1766638252352,-827.76,0.00016998,2]
[399726726,1766638252362,-500.0,0.00016998,2]
[399726727,1766638252372,-500.0,0.00016998,2]
[399726728,1766638252385,-296159.9042528,0.00016999,2]
[399726729,1766638252396,-1060.87558749,0.00016999,5]
[399726730,1766638252406,-500.0,0.00016999,2]
[399726731,1766638252417,-500.0,0.00016999,2]
[399726732,1766638252427,-500.0,0.00016999,2]
[399726733,1766638252438,-526.94684762,0.00016999,2]
[399726734,1766638252448,-590.97,0.00016999,2]
[399726735,1766638252459,-590.97,0.00016999,2]
[399726736,1766638252469,-590.97,0.00016999,2]
[399726737,1766638252479,-590.97,0.00016999,2]
[399726738,1766638252489,-590.97,0.00016999,2]
[399726739,1766638252499,-590.97,0.00016999,2]
[399726740,1766638252509,-590.97,0.00016999,2]
[399726741,1766638252519,-590.97,0.00016999,2]
[399726742,1766638252529,-590.97,0.00016999,2]
[399726743,1766638252539,-590.97,0.00016999,2]
[399726744,1766638252550,-590.97,0.00016999,2]
[399726745,1766638252560,-590.97,0.00016999,2]
[399726746,1766638252571,-590.97,0.00016999,2]
[399726747,1766638252581,-590.97,0.00016999,2]
[399726748,1766638252591,-590.97,0.00016999,2]
[399726749,1766638252600,-590.97,0.00016999,2]
[399726750,1766638252610,-590.97,0.00016999,2]
[399726751,1766638252620,-591.12367143,0.00016999,2]
[399726752,1766638252630,-500.0,0.00016999,2]
[399726753,1766638252640,-510.32017252,0.00016999,2]
[399726754,1766638252651,-500.0,0.00016999,2]
[399726755,1766638252662,-500.0,0.00016999,2]
[399726756,1766638252672,-500.0,0.00016999,2]
[399726757,1766638252683,-500.0,0.00016999,2]
[399726758,1766638252694,-500.0,0.00016999,2]
[399726759,1766638252704,-500.0,0.00016999,2]
[399726760,1766638252714,-500.0,0.00016999,2]
[399726761,1766638252724,-500.0,0.00016999,2]
[399726762,1766638252735,-500.0,0.00016999,2]
[399726763,1766638252745,-587.42809654,0.00016999,2]
[399726764,1766638252756,-500.0,0.00016999,2]
[399726765,1766638252766,-500.0,0.00016999,2]
[399726766,1766638252776,-500.0,0.00016999,2]
[399726767,1766638252786,-500.0,0.00016999,2]
[399726768,1766638252797,-500.0,0.00016999,2]
[399726769,1766638252807,-579.92879926,0.00016999,2]
[399726770,1766638252817,-699.05,0.00016999,2]
[399726771,1766638252827,-699.05,0.00016999,2]
[399726772,1766638252838,-699.05,0.00016999,2]
[399726773,1766638252848,-699.05,0.00016999,2]
[399726774,1766638252858,-699.05,0.00016999,2]
[399726775,1766638252868,-699.05,0.00016999,2]
[399726776,1766638252879,-699.05,0.00016999,2]
[399726777,1766638252888,-699.05,0.00016999,2]
[399726778,1766638252898,-699.05,0.00016999,2]
[399726779,1766638252908,-699.05,0.00016999,2]
[399726780,1766638252918,-699.05,0.00016999,2]
[399726781,1766638252928,-699.05,0.00016999,2]
[399726782,1766638252937,-699.05,0.00016999,2]
[399726783,1766638252947,-699.09826677,0.00016999,2]
[399726784,1766638252957,-500.0,0.00016999,2]
[399726785,1766638252967,-500.0,0.00016999,2]
[399726786,1766638252978,-500.0,0.00016999,2]
[399726787,1766638252987,-500.0,0.00016999,2]
[399726788,1766638252998,-500.0,0.00016999,2]
[399726789,1766638253008,-500.0,0.00016999,2]
[399726790,1766638253019,-500.0,0.00016999,2]
[399726791,1766638253029,-565.0871574,0.00016999,2]
[399726792,1766638253040,-500.0,0.00016999,2]
[399726793,1766638253051,-500.0,0.00016999,2]
[399726794,1766638253061,-500.0,0.00016999,2]
[399726795,1766638253071,-500.0,0.00016999,2]